[Event "Klubbmästerskap 2025 Torsdagar"]
[Site "Linköping, Sweden"]
[Date "2025.03.06"]
[Round "6.6"]
[White "Stefanovic, Dragan 1958"]
[Black "Ekman, Theo"]
[Result "1-0"]
[TimeControl "90 min + 30 sec/move"]
[WhiteElo "1791"]
[BlackElo "1806"]

1. e4 {[%clk 01:30:46]} {[%emt 00:00:13]} Nc6 {[%clk 01:30:54]} {[%emt
00:00:06]} 2. Nf3 {[%clk 01:30:56]} {[%emt 00:00:20]} d6 {[%clk 01:31:15]}
{[%emt 00:00:09]} 3. Nc3 {[%clk 01:30:27]} {[%emt 00:01:01]} Nf6 {[%clk
01:31:36]} {[%emt 00:00:08]} 4. Bb5 {[%clk 01:30:39]} {[%emt 00:00:18]} a6
{[%clk 01:29:53]} {[%emt 00:02:12]} 5. Bxc6+ {[%clk 01:30:28]} {[%emt
00:00:41]} bxc6 {[%clk 01:30:14]} {[%emt 00:00:09]} 6. h3 {[%clk 01:24:53]}
{[%emt 00:06:05]} g6 {[%clk 01:27:19]} {[%emt 00:03:26]} 7. d4 {[%clk
01:23:10]} {[%emt 00:02:13]} Bg7 {[%clk 01:27:11]} {[%emt 00:00:37]} 8. Be3
{[%clk 01:16:26]} {[%emt 00:07:14]} Bb7 {[%clk 01:21:41]} {[%emt 00:06:00]} 9.
e5 {[%clk 01:07:23]} {[%emt 00:09:34]} Nd5 {[%clk 01:17:52]} {[%emt 00:04:18]}
10. Nxd5 {[%clk 01:02:22]} {[%emt 00:05:31]} cxd5 {[%clk 01:17:47]} {[%emt
00:00:35]} 11. exd6 {[%clk 01:02:11]} {[%emt 00:00:42]} cxd6 {[%clk 01:10:51]}
{[%emt 00:07:25]} 12. Qd2 {[%clk 01:00:33]} {[%emt 00:02:08]} Qb6 {[%clk
01:09:44]} {[%emt 00:01:36]} 13. O-O {[%clk 00:59:40]} {[%emt 00:01:24]} O-O
{[%clk 01:08:44]} {[%emt 00:01:30]} 14. Bh6 {[%clk 00:59:05]} {[%emt 00:01:05]}
Rab8 {[%clk 01:08:15]} {[%emt 00:00:58]} 15. Bxg7 {[%clk 00:58:46]} {[%emt
00:00:49]} Kxg7 {[%clk 01:08:35]} {[%emt 00:00:10]} 16. b3 {[%clk 00:57:15]}
{[%emt 00:02:01]} Rfc8 {[%clk 01:07:40]} {[%emt 00:01:25]} 17. Rfe1 {[%clk
00:50:04]} {[%emt 00:07:40]} e6 {[%clk 01:06:07]} {[%emt 00:02:05]} 18. Nh2
{[%clk 00:47:21]} {[%emt 00:03:13]} Qd8 {[%clk 00:54:22]} {[%emt 00:12:14]} 19.
Ng4 {[%clk 00:39:10]} {[%emt 00:08:41]} h5 {[%clk 00:45:38]} {[%emt 00:09:12]}
20. Nh2 {[%clk 00:27:18]} {[%emt 00:12:24]} Rc6 {[%clk 00:41:56]} {[%emt
00:04:12]} 21. Rac1 {[%clk 00:25:26]} {[%emt 00:02:23]} Rbc8 {[%clk 00:40:19]}
{[%emt 00:02:06]} 22. g4 {[%clk 00:24:13]} {[%emt 00:01:43]} hxg4 {[%clk
00:32:20]} {[%emt 00:08:30]} 23. Nxg4 {[%clk 00:23:28]} {[%emt 00:01:14]} Qh4
{[%clk 00:28:00]} {[%emt 00:04:50]} 24. Re3 {[%clk 00:22:50]} {[%emt 00:01:09]}
R6c7 {[%clk 00:22:08]} {[%emt 00:06:22]} 25. Rg3 {[%clk 00:22:04]} {[%emt
00:01:14]} f5 {[%clk 00:20:05]} {[%emt 00:02:35]} 26. Nh2 {[%clk 00:21:29]}
{[%emt 00:01:05]} f4 {[%clk 00:18:49]} {[%emt 00:01:46]} 27. Rf3 {[%clk
00:12:16]} {[%emt 00:09:43]} e5 {[%clk 00:19:12]} {[%emt 00:00:08]} 28. Ng4
{[%clk 00:08:50]} {[%emt 00:03:55]} Re8 {[%clk 00:17:54]} {[%emt 00:01:48]} 29.
Qb4 {[%clk 00:07:13]} {[%emt 00:02:06]} Re6 {[%clk 00:13:29]} {[%emt 00:04:55]}
30. Kh2 {[%clk 00:06:26]} {[%emt 00:01:17]} Rf7 {[%clk 00:13:31]} {[%emt
00:00:28]} 31. Qd2 {[%clk 00:03:21]} {[%emt 00:03:35]} Re8 {[%clk 00:11:59]}
{[%emt 00:02:02]} 32. Re1 {[%clk 00:03:18]} {[%emt 00:00:34]} Rf5 {[%clk
00:10:14]} {[%emt 00:02:15]} 33. Qb4 {[%clk 00:02:54]} {[%emt 00:00:54]} Rh5
{[%clk 00:04:49]} {[%emt 00:05:55]} 34. Qxb7+ {[%clk 00:02:25]} {[%emt
00:00:58]} Re7 {[%clk 00:05:12]} {[%emt 00:00:07]} 35. Qxd5 {[%clk 00:02:38]}
{[%emt 00:00:17]} Qxg4 {[%clk 00:03:34]} {[%emt 00:02:09]} 36. dxe5 {[%clk
00:02:29]} {[%emt 00:00:39]} dxe5 {[%clk 00:03:11]} {[%emt 00:00:53]} 37. Rxe5
{[%clk 00:02:17]} {[%emt 00:00:43]} Rexe5 {[%clk 00:01:10]} {[%emt 00:02:30]}
38. Qxe5+ {[%clk 00:02:44]} {[%emt 00:00:02]} Rxe5 {[%clk 00:01:19]} {[%emt
00:02:34]} 39. hxg4 {[%clk 00:05:41]} {[%emt 00:00:03]} Re2 {[%clk 00:01:17]}
{[%emt 00:00:32]} 40. Rxf4 {[%clk 00:05:11]} {[%emt 00:01:00]} Rxc2 {[%clk
00:01:37]} {[%emt 00:00:10]} 41. a4 {[%clk 00:05:13]} {[%emt 00:00:28]} Rb2
{[%clk 00:01:37]} {[%emt 00:00:29]} 42. Rf3 {[%clk 00:05:04]} {[%emt 00:00:39]}
a5 {[%clk 00:01:48]} {[%emt 00:00:20]} 43. Kg3 {[%clk 00:05:19]} {[%emt
00:00:15]} Kh6 {[%clk 00:01:28]} {[%emt 00:00:50]} 44. Kf4 {[%clk 00:05:09]}
{[%emt 00:00:40]} Kg7 {[%clk 00:01:22]} {[%emt 00:00:35]} 45. Ke4 {[%clk
00:05:27]} {[%emt 00:00:12]} Rd2 {[%clk 00:01:08]} {[%emt 00:00:44]} 46. Ke3
{[%clk 00:05:23]} {[%emt 00:00:34]} Rd6 {[%clk 00:01:22]} {[%emt 00:00:15]} 47.
Ke2 {[%clk 00:04:11]} {[%emt 00:01:41]} Kh6 {[%clk 00:01:33]} {[%emt 00:00:19]}
48. Rd3 {[%clk 00:04:16]} {[%emt 00:00:26]} Rb6 {[%clk 00:01:05]} {[%emt
00:00:58]} 49. f4 {[%clk 00:04:25]} {[%emt 00:00:21]} Re6+ {[%clk 00:00:59]}
{[%emt 00:00:36]} 50. Kd2 {[%clk 00:04:43]} {[%emt 00:00:12]} Re4 {[%clk
00:00:42]} {[%emt 00:00:47]} 51. Rd5 {[%clk 00:04:10]} {[%emt 00:01:03]} Rxf4
{[%clk 00:00:59]} {[%emt 00:00:14]} 52. g5+ {[%clk 00:04:37]} {[%emt 00:00:02]}
Kh5 {[%clk 00:01:10]} {[%emt 00:00:18]} 53. Rxa5 {[%clk 00:05:00]} {[%emt
00:00:09]} Kg4 {[%clk 00:01:06]} {[%emt 00:00:34]} 54. Rb5 {[%clk 00:04:30]}
{[%emt 00:00:59]} Rf1 {[%clk 00:01:01]} {[%emt 00:00:34]} 55. a5 {[%clk
00:04:49]} {[%emt 00:00:12]} Rf2+ {[%clk 00:01:02]} {[%emt 00:00:29]} 56. Kc3
{[%clk 00:05:10]} {[%emt 00:00:09]} Rf3+ {[%clk 00:01:18]} {[%emt 00:00:14]} 57.
Kb2 {[%clk 00:05:31]} {[%emt 00:00:09]} Rf2+ {[%clk 00:01:36]} {[%emt
00:00:12]} 58. Ka3 {[%clk 00:05:56]} {[%emt 00:00:05]} Rf1 {[%clk 00:01:56]}
{[%emt 00:00:10]} 59. b4 {[%clk 00:06:03]} {[%emt 00:00:24]} Rf3+ {[%clk
00:01:59]} {[%emt 00:00:25]} 60. Ka4 {[%clk 00:06:31]} {[%emt 00:00:04]} Rf1
{[%clk 00:02:23]} {[%emt 00:00:06]} 61. Rc5 {[%clk 00:06:40]} {[%emt 00:00:21]}
Kh5 {[%clk 00:01:43]} {[%emt 00:01:09]} 62. a6 {[%clk 00:06:48]} {[%emt
00:00:23]} 1-0